fUST/lending_fUST_20250821
["ID","MTS","AMOUNT","RATE_DAILY","PERIOD"]
[380366725,1755706239308,-428.6,0.00023421,2]
[380366727,1755706239318,-1000.0,0.00023421,2]
[380366729,1755706239327,-1000.0,0.00023421,2]
[380366731,1755706239336,-1000.0,0.00023421,2]
[380366733,1755706239345,-1001.73351215,0.00023421,2]
[380366735,1755706239355,-345.42670777,0.00023421,2]
[380366737,1755706239364,-1000.0,0.00023421,2]
[380366739,1755706239373,-1000.0,0.00023421,2]
[380366741,1755706239382,-500.0,0.00023421,2]
[380366743,1755706239392,-1001.70449007,0.00023421,2]
[380366745,1755706239401,-1000.0,0.00023521,2]
[380366747,1755706239411,-1000.0,0.00023521,2]
[380366748,1755706239419,-206.0,0.00023538,2]
[380366750,1755706239429,-500.0,0.00023542,7]
[380366752,1755706239438,-206.0,0.0002358,2]
[380366754,1755706239447,-1000.0,0.00023588,2]
[380366756,1755706239457,-684.28553631,0.00023642,2]
[380366758,1755706239466,-200.0,0.0002371,8]
[380366760,1755706239475,-206.0,0.00023732,2]
[380366762,1755706239485,-3106.72577163,0.00023757,2]
[380366764,1755706239494,-3106.72577163,0.00023763,2]
[380366766,1755706239504,-3965.35268858,0.00023803,2]
[380366768,1755706239514,-500.0,0.00023816,7]
[380366770,1755706239525,-150.81405309,0.00023873,2]
[380366772,1755706239535,-1000.69307547,0.00023873,2]
[380366774,1755706239545,-500.67768814,0.00023873,2]
[380366776,1755706239554,-500.0,0.00023873,2]
[380366778,1755706239563,-500.0,0.00023873,2]
[380366780,1755706239573,-500.0,0.00023873,2]
[380366782,1755706239583,-501.24782479,0.00023873,2]
[380366784,1755706239594,-501.83718057,0.00023873,2]
[380366786,1755706239604,-500.97096054,0.00023873,2]
[380366788,1755706239615,-503.6102621,0.00023873,2]
[380366790,1755706239624,-501.5403866,0.00023873,2]
[380366791,1755706239633,-500.0,0.00023873,2]
[380366793,1755706239644,-500.0,0.00023873,2]
[380366794,1755706239653,-502.76678058,0.00023873,2]
[380366796,1755706239666,-508.52762757,0.00023873,2]
[380366798,1755706239676,-500.0,0.00023873,2]
[380366800,1755706239687,-300.0,0.00023899,2]
[380366802,1755706239697,-500.0,0.00023899,2]
[380366804,1755706239706,-500.0,0.00023899,2]
[380366806,1755706239715,-447.74134745,0.00023899,2]
[380366808,1755706239727,-794.68080307,0.000239,4]
[380366810,1755706239744,-26364.83,0.000239,2]
[380366812,1755706239754,-44083.74,0.000239,4]
[380366814,1755706239763,-3000.0,0.000239,2]
[380366816,1755706239772,-273380.52,0.000239,4]
[380366818,1755706239781,-21191.17,0.000239,4]
[380366820,1755706239791,-60488.01,0.000239,4]
[380366822,1755706239799,-151.0,0.000239,7]
[380366824,1755706239809,-151.0,0.000239,7]
[380366826,1755706239818,-151.0,0.000239,7]
[380366828,1755706239828,-153.130788,0.000239,7]
[380366830,1755706239837,-151.0,0.000239,7]
[380366832,1755706239846,-151.709836,0.000239,7]
[380366834,1755706239855,-151.0,0.000239,7]
[380366836,1755706239865,-151.0,0.000239,7]
[380366838,1755706239875,-151.0,0.000239,7]
[380366840,1755706239894,-151.0,0.000239,7]
[380366842,1755706239904,-151.0,0.000239,7]
[380366844,1755706239915,-301.209165,0.000239,7]
[380366846,1755706239925,-151.0,0.000239,7]
[380366848,1755706239934,-151.0,0.000239,7]
[380366850,1755706239944,-151.0,0.000239,7]
[380366852,1755706239953,-151.0,0.000239,7]
[380366854,1755706239963,-151.0,0.000239,7]
[380366856,1755706239972,-151.0,0.000239,7]
[380366860,1755706239981,-151.0,0.000239,7]
[380366865,1755706239990,-160.803441,0.000239,7]
[380366869,1755706239999,-151.0,0.000239,7]
[380366873,1755706240008,-169.586895,0.000239,7]
[380366878,1755706240018,-151.0,0.000239,7]
[380366881,1755706240027,-151.0,0.000239,7]
[380366885,1755706240036,-200.43177,0.000239,7]
[380366888,1755706240046,-1000.0,0.000239,2]
[380366891,1755706240055,-1000.0,0.000239,2]
[380366894,1755706240064,-1000.0,0.000239,2]
[380366897,1755706240073,-1000.0,0.000239,2]
[380366900,1755706240082,-1000.0,0.000239,2]
[380366903,1755706240091,-1000.0,0.000239,2]
[380366906,1755706240100,-1000.0,0.000239,2]
[380366909,1755706240109,-1000.0,0.000239,2]
[380366911,1755706240118,-1000.0,0.000239,2]
[380366913,1755706240127,-1000.0,0.000239,2]
[380366915,1755706240136,-1000.0,0.000239,2]
[380366917,1755706240145,-1000.0,0.000239,2]
[380366918,1755706240154,-1000.0,0.000239,2]
[380366920,1755706240167,-1000.0,0.000239,2]
[380366922,1755706240176,-1000.0,0.000239,2]
[380366924,1755706240185,-1000.0,0.000239,2]
[380366926,1755706240194,-1000.0,0.000239,2]
[380366928,1755706240204,-1000.0,0.000239,2]
[380366930,1755706240213,-810.945368,0.000239,2]
[380366932,1755706240224,-151.0,0.000239,7]
[380366946,1755706240346,-151.0,0.000239,7]
[380366948,1755706240357,-151.0,0.000239,7]
[380366950,1755706240366,-256.892,0.000239,7]
[380366952,1755706240376,-150.0,0.000239,2]
[380366954,1755706240385,-151.0,0.000239,7]
[380366956,1755706240395,-247.62232,0.000239,7]
[380366958,1755706240404,-151.0,0.000239,7]
[380366960,1755706240415,-151.0,0.000239,7]
[380366962,1755706240424,-293.242872,0.000239,7]
[380366964,1755706240434,-293.242872,0.000239,7]
[380366966,1755706240443,-293.242872,0.000239,7]
[380366968,1755706240452,-293.242872,0.000239,7]
[380366970,1755706240462,-293.242872,0.000239,7]
[380366972,1755706240471,-293.242872,0.000239,7]
[380366974,1755706240480,-151.0,0.000239,7]
[380366976,1755706240490,-293.242872,0.000239,7]
[380366978,1755706240499,-293.242872,0.000239,7]
[380366980,1755706240508,-151.0,0.000239,7]
[380366982,1755706240519,-151.0,0.000239,7]
[380366984,1755706240528,-151.0,0.000239,7]
[380366986,1755706240537,-151.0,0.000239,7]
[380366988,1755706240547,-151.0,0.000239,7]
[380366990,1755706240556,-210.381504,0.000239,7]
[380366992,1755706240565,-210.381504,0.000239,7]
[380366994,1755706240574,-151.0,0.000239,7]
[380366996,1755706240584,-210.381504,0.000239,7]
[380366998,1755706240593,-151.0,0.000239,7]
[380367001,1755706240607,-210.381504,0.000239,7]
[380367004,1755706240616,-196.308632,0.000239,7]
[380367007,1755706240625,-151.0,0.000239,7]
[380367009,1755706240634,-151.0,0.000239,7]
[380367011,1755706240643,-151.565054,0.000239,7]
[380367013,1755706240652,-151.0,0.000239,7]
[380367015,1755706240663,-151.0,0.000239,7]
[380367017,1755706240672,-151.0,0.000239,7]
[380367019,1755706240683,-192.0,0.00023948,2]
[380367020,1755706240693,-260.0,0.00023965,2]
[380367023,1755706240702,-1082.59820127,0.00023967,2]
[380367024,1755706240712,-151.0,0.00023968,7]
[380367026,1755706240721,-151.0,0.00023968,7]
[380367028,1755706240730,-151.0,0.00023968,7]
[380367030,1755706240740,-155.322676,0.00023968,7]
[380367032,1755706240749,-151.0,0.00023968,7]
[380367034,1755706240758,-151.0,0.00023968,7]
[380367036,1755706240767,-151.0,0.00023968,7]
[380367038,1755706240776,-293.242872,0.00023968,7]
[380367040,1755706240785,-293.242872,0.00023968,7]
[380367042,1755706240795,-293.242872,0.00023968,7]
[380367044,1755706240804,-293.242868,0.00023968,7]
[380367046,1755706240814,-151.0,0.00023968,7]
[380367048,1755706240823,-1500.0,0.00023968,2]
[380367050,1755706240832,-1500.0,0.00023968,2]
[380367052,1755706240843,-1500.0,0.00023968,2]
[380367054,1755706240852,-1500.0,0.00023968,2]
[380367056,1755706240863,-206.0,0.00023991,2]
[380367058,1755706240872,-241.69034967,0.00024,60]
[380367060,1755706240882,-844.05985274,0.00024,7]
[380367062,1755706240891,-232.24568399,0.00024,7]
[380367064,1755706240900,-160.0,0.00024,7]
[380367066,1755706240909,-408.0,0.00024066,2]
[380367068,1755706240921,-503.66116912,0.00024068,2]
[380367070,1755706240930,-500.0,0.0002409,7]
[380367072,1755706240939,-206.0,0.00024153,2]
[380367074,1755706240948,-151.0,0.00024245,2]
[380367076,1755706240958,-159.73,0.00024256,2]
[380367078,1755706240967,-206.0,0.00024261,2]
[380367080,1755706240977,-973.0,0.00024267,2]
[380367082,1755706240986,-2154.0,0.00024267,2]
[380367084,1755706240995,-637.0,0.00024267,2]
[380367086,1755706241004,-5417.28,0.000243,7]
[380367088,1755706241014,-3965.35268858,0.00024309,2]
[380367089,1755706241023,-210.381504,0.00024309,7]
[380367090,1755706241032,-210.381504,0.00024309,7]
[380367091,1755706241040,-210.381504,0.00024309,7]
[380367092,1755706241049,-210.381504,0.00024309,7]
[380367093,1755706241058,-151.0,0.00024309,7]
[380367094,1755706241067,-151.0,0.00024309,7]
[380367095,1755706241076,-151.0,0.00024309,7]
[380367096,1755706241084,-151.0,0.00024309,7]
[380367097,1755706241094,-600.0,0.00024349,20]
[380367098,1755706241103,-3503.98181747,0.0002435,2]
[380367099,1755706241112,-300.0,0.00024359,2]
[380367100,1755706241122,-500.0,0.00024364,7]
[380367101,1755706241131,-206.0,0.000244,2]
[380367102,1755706241140,-10199.69,0.000244,7]
[380367103,1755706241150,-151.0,0.000244,7]
[380367104,1755706241159,-151.0,0.000244,7]
[380367105,1755706241169,-151.0,0.000244,7]
[380367106,1755706241179,-597.05718573,0.00024421,2]
[380367107,1755706241188,-1000.0,0.00024421,2]
[380367108,1755706241197,-1000.0,0.00024421,2]
[380367109,1755706241207,-1000.0,0.00024421,2]
[380367110,1755706241216,-1000.0,0.00024421,2]
[380367111,1755706241225,-501.34172822,0.00024421,2]
[380367112,1755706241234,-192.0,0.00024438,2]
[380367113,1755706241243,-206.0,0.00024445,2]
[380367114,1755706241253,-3374.97367572,0.000245,7]
[380367115,1755706241262,-1147.83,0.000245,7]
[380367116,1755706241271,-360.0,0.00024513,2]
[380367117,1755706241279,-512.72430546,0.00024516,2]
[380367118,1755706241288,-696.5037321,0.00024516,2]
[380367119,1755706241298,-500.0,0.00024516,2]
[380367120,1755706241307,-684.28553631,0.00024577,2]
[380367121,1755706241316,-1082.59820127,0.000246,2]
[380367122,1755706241325,-157.0,0.000246,4]
[380367123,1755706241334,-157.0,0.000246,7]
[380367124,1755706241344,-1002.0,0.000246,7]
[380367125,1755706241353,-150.0,0.000246,2]
[380367126,1755706241362,-206.0,0.00024609,2]
[380367127,1755706241371,-500.0,0.00024638,7]
[380367129,1755706241380,-500.0,0.00024658,2]
[380367131,1755706241390,-206.0,0.00024661,2]
[380367133,1755706241399,-204.64372186,0.00024773,2]
[380367135,1755706241409,-1000.0,0.00024773,2]
[380367137,1755706241420,-151.0,0.000248,7]
[380367139,1755706241429,-72261.2426558,0.000248,2]
[380367141,1755706241439,-1707.49960024,0.00024815,2]
[380367143,1755706241448,-3965.35268858,0.00024815,2]
[380367145,1755706241456,-206.0,0.0002482,2]
[380367147,1755706241466,-587.0,0.00024836,2]
[380367149,1755706241476,-206.0,0.0002484,2]
[380367151,1755706241486,-500.0,0.00024873,2]
[380367153,1755706241495,-206.0,0.00024898,2]
[380367155,1755706241504,-1190.96948395,0.000249,2]
[380367157,1755706241513,-1370.0,0.000249,4]
[380367159,1755706241523,-273133.91202341,0.000249,2]
[380367411,1755706244911,-132379.47048042,0.000249,2]
[380367412,1755706244990,-3358.05433388,0.000249,2]
[380367413,1755706245001,-5078.83041551,0.000249,2]
[380367414,1755706245321,-1012.69781317,0.00023899,2]
[380367423,1755706246379,-616.38279652,0.00023899,2]
[380367424,1755706246389,-1629.08060969,0.00023899,2]
[380367425,1755706246399,-1629.08060969,0.00023899,2]
[380367426,1755706246408,-1629.08060969,0.00023899,2]
[380367427,1755706246418,-1629.08060969,0.00023899,2]
[380367428,1755706246428,-1629.08060969,0.00023899,2]
[380367429,1755706246438,-1629.08060969,0.00023899,2]
[380367430,1755706246447,-1629.08060969,0.00023899,2]
[380367431,1755706246457,-1629.08060969,0.00023899,2]
[380367432,1755706246466,-199.0,0.000239,60]
[380367433,1755706246478,-12597.15928571,0.000249,2]
[380367436,1755706380315,454.15,0.00015984,7]
[380367437,1755706380934,454.15,0.00015984,7]
[380367438,1755706459395,3000.0,0.000192,2]
[380367439,1755706560707,230.1,0.00016094,7]
[380367440,1755706561396,230.1,0.00016094,7]
[380367441,1755706562070,230.1,0.00016094,7]
[380367444,1755706863218,5000.0,0.000192,2]
[380367446,1755706912527,266.14,0.00016094,2]
[380367447,1755706913040,266.14,0.00016094,2]
[380367448,1755706913567,266.14,0.00016094,2]
[380367449,1755707016937,187.01888354,0.00027228,120]
[380367450,1755707119486,158.052414,0.00013699,2]
[380367451,1755707229052,150.0,0.000189,2]
[380367452,1755707249117,-5000.0,0.00019701,2]
[380367453,1755707249138,-631.7210629,0.000199,2]
[380367454,1755707249159,-631.72106284,0.00020835,2]
[380367455,1755707249178,-300.0,0.00021647,2]
[380367456,1755707249198,-8028.3125305,0.00021648,2]
[380367457,1755707249219,-631.72106284,0.00021771,2]
[380367458,1755707249239,-158.052414,0.00021918,2]
[380367459,1755707249257,-215.82729805,0.00021965,2]
[380367460,1755707249278,-1396.38627137,0.00022673,2]
[380367461,1755707249430,-3206.24715452,0.000227,2]
[380367462,1755707249451,-3503.98181748,0.000227,2]
[380367463,1755707249471,-50000.0,0.000227,2]
[380367464,1755707249492,-271.64496179,0.00022773,2]
[380367465,1755707249514,-428.6,0.00022773,2]
[380367466,1755707249540,-2549.362,0.00022773,2]
[380367467,1755707249566,-179.508,0.00022773,2]
[380367468,1755707249588,-2183.31810187,0.00022775,2]
[380367469,1755707249608,-291.70077764,0.00022776,2]
[380367470,1755707249629,-151.0,0.00022776,2]
[380367471,1755707249648,-284.93934815,0.00022776,2]
[380367472,1755707249668,-151.0,0.00022776,2]
[380367473,1755707249689,-151.0,0.00022776,2]
[380367474,1755707249709,-151.0,0.00022776,2]
[380367475,1755707249728,-151.0,0.00022776,2]
[380367476,1755707249748,-151.0,0.00022776,2]
[380367477,1755707249769,-151.0,0.00022776,2]
[380367478,1755707249792,-151.0,0.00022776,2]
[380367479,1755707249813,-151.0,0.00022776,2]
[380367480,1755707249836,-151.0,0.00022776,2]
[380367481,1755707249857,-151.0,0.00022776,2]
[380367482,1755707249877,-151.0,0.00022776,2]
[380367483,1755707249899,-151.0,0.00022776,2]
[380367484,1755707249923,-151.0,0.00022776,2]
[380367485,1755707249944,-151.0,0.00022776,2]
[380367486,1755707249965,-151.0,0.00022776,2]
[380367487,1755707249987,-151.0,0.00022776,2]
[380367488,1755707250009,-151.0,0.00022776,2]
[380367489,1755707250031,-151.0,0.00022776,2]
[380367490,1755707250052,-275.42496579,0.00022776,2]
[380367491,1755707250073,-151.0,0.00022776,2]
[380367492,1755707250094,-151.0,0.00022776,2]
[380367493,1755707250114,-151.0,0.00022776,2]
[380367494,1755707250134,-151.0,0.00022776,2]
[380367495,1755707250154,-151.0,0.00022776,2]
[380367496,1755707250174,-150.0,0.00022789,2]
[380367497,1755707250194,-500.0,0.00022789,2]
[380367498,1755707250216,-500.0,0.00022789,2]
[380367499,1755707250237,-474.62874062,0.00022789,2]
[380367500,1755707250260,-500.0,0.00022789,2]
[380367501,1755707250281,-500.0,0.00022789,2]
[380367502,1755707250304,-500.0,0.00022789,2]
[380367503,1755707250325,-500.0,0.00022789,2]
[380367504,1755707250347,-500.0,0.00022789,2]
[380367505,1755707250368,-500.0,0.00022789,2]
[380367506,1755707250391,-500.0,0.00022789,2]
[380367507,1755707250412,-500.0,0.00022789,2]
[380367508,1755707250432,-500.0,0.00022789,2]
[380367509,1755707250453,-500.0,0.00022789,2]
[380367510,1755707250474,-500.0,0.00022789,2]
[380367511,1755707250496,-500.0,0.00022789,2]
[380367512,1755707250516,-500.0,0.00022789,2]
[380367513,1755707250538,-500.0,0.00022789,2]
[380367514,1755707250558,-500.0,0.00022789,2]
[380367515,1755707250579,-488.11081113,0.00022789,2]
[380367516,1755707250600,-500.0,0.00022789,2]
[380367517,1755707250620,-635.97936412,0.00022789,2]
[380367518,1755707250640,-226.96145586,0.00022789,2]
[380367519,1755707250660,-427.16586656,0.00022789,2]
[380367520,1755707250680,-204.26531028,0.00022789,2]
[380367521,1755707250699,-522.38142771,0.00022789,2]
[380367522,1755707250720,-336.9111875,0.00022789,2]
[380367523,1755707250740,-500.0,0.00022789,2]
[380367524,1755707250764,-500.0,0.00022789,2]
[380367525,1755707250786,-500.0,0.00022789,2]
[380367526,1755707250806,-227.15264847,0.00022789,2]
[380367527,1755707250827,-500.0,0.00022789,2]
[380367528,1755707250848,-500.0,0.00022789,2]
[380367529,1755707250868,-133273.68115069,0.0002279,2]
[380367530,1755707278512,-1107.0,0.00022562,2]
[380367534,1755707325829,6286.55844914,0.00018,2]
[380367535,1755707405967,1000.0,0.00027,120]
[380367581,1755707432467,-568.47160778,0.000199,2]
[380367583,1755707432477,-568.47160754,0.00020835,2]
[380367585,1755707432486,-200.12438765,0.00021671,2]
[380367587,1755707432496,-568.47160754,0.00021771,2]
[380367589,1755707432506,-610.379231,0.00021802,2]
[380367591,1755707432515,-1140.94212065,0.00022106,2]
[380367593,1755707432525,-315.962602,0.00022116,2]
[380367595,1755707432534,-3893.0,0.00022562,2]
[380367597,1755707432544,-200.12438765,0.000227,2]
[380367599,1755707432553,-1221.83798744,0.000227,2]
[380367601,1755707432563,-568.47160754,0.00022706,2]
[380367603,1755707432572,-151.0,0.00022776,2]
[380367605,1755707432581,-2183.31810187,0.00022776,2]
[380367608,1755707432591,-500.0,0.00022789,2]
[380367610,1755707432599,-300.0,0.00022789,2]
[380367612,1755707432609,-22338.8705162,0.0002279,2]
[380367616,1755707432620,-64600.91171467,0.0002279,2]
[380367654,1755707438593,-1784.50634181,0.00022706,2]
[380367655,1755707438648,-48215.49365819,0.00022706,2]
[380367656,1755707438657,-149786.53661844,0.0002279,2]
[380367657,1755707438666,-12687.94051737,0.000228,7]
[380367658,1755707438675,-1275.37,0.000228,7]
[380367659,1755707438685,-11332.98,0.000228,7]
[380367660,1755707438694,-5417.28,0.000228,7]
[380367661,1755707438704,-375.94359665,0.000228,7]
[380367663,1755707438714,-2264.10087164,0.00022831,2]
[380367665,1755707438723,-160.0,0.00022885,2]
[380367667,1755707438732,-164.55450202,0.00022886,2]
[380367668,1755707438741,-1000.0,0.00022889,2]
[380367669,1755707438750,-1000.0,0.00022889,2]
[380367670,1755707438759,-1000.0,0.00022889,2]
[380367671,1755707438768,-1000.0,0.00022889,2]
[380367672,1755707438778,-1000.0,0.00022889,2]
[380367673,1755707438787,-1000.0,0.00022889,2]
[380367674,1755707438796,-1013.33049499,0.00022889,2]
[380367675,1755707438805,-500.0,0.00023063,2]
[380367676,1755707438815,-300.0,0.00023245,20]
[380367677,1755707438825,-300.0,0.00023245,20]
[380367678,1755707438834,-1221.8379874,0.00023333,2]
[380367679,1755707438843,-500.0,0.00023337,2]
[380367680,1755707438853,-1862.98,0.00023398,2]
[380367681,1755707438862,-500.0,0.00023611,2]
[380367682,1755707438871,-568.47160754,0.00023642,2]
[380367683,1755707438881,-2796.05319465,0.00023768,2]
[380367684,1755707438890,-2335.98787832,0.00023773,2]
[380367685,1755707438899,-1388.76518428,0.00023787,2]
[380367686,1755707438909,-2796.05319465,0.00023788,2]
[380367687,1755707438918,-2564.9977236,0.00023799,2]
[380367688,1755707438927,-500.0,0.00023873,2]
[380367689,1755707438938,-500.0,0.00023873,2]
[380367690,1755707438952,-500.0,0.00023873,2]
[380367691,1755707438962,-500.0,0.00023873,2]
[380367692,1755707438971,-204.64372186,0.00023873,2]
[380367693,1755707438981,-500.0,0.00023873,2]
[380367694,1755707438991,-500.0,0.00023873,2]
[380367695,1755707439000,-500.0,0.00023873,2]
[380367696,1755707439009,-500.0,0.00023873,2]
[380367697,1755707439020,-345.42670777,0.00023873,2]
[380367698,1755707439029,-500.0,0.00023873,2]
[380367699,1755707439039,-500.0,0.00023873,2]
[380367700,1755707439048,-500.0,0.00023885,2]
[380367701,1755707439059,-500.0,0.00023885,2]
[380367702,1755707439071,-151.0,0.00023885,2]
[380367703,1755707439081,-500.0,0.00023899,2]
[380367704,1755707439090,-500.0,0.00023899,2]
[380367705,1755707439099,-246.1403844,0.00023899,2]
[380367706,1755707439109,-399938.12,0.000239,4]
[380367707,1755707439118,-26364.83,0.000239,2]
[380367708,1755707439128,-1221.8379874,0.00023965,2]
[380367709,1755707439138,-586.81504302,0.0002398,2]
[380367710,1755707439148,-844.05985274,0.00024,7]
[380367711,1755707439156,-4548.08946416,0.00024,60]
[380367712,1755707439166,-232.24568399,0.00024,7]
[380367713,1755707439175,-160.0,0.00024,7]
[380367714,1755707439183,-200.0,0.0002404,9]
[380367715,1755707439193,-151.0,0.00024145,2]
[380367716,1755707439202,-334.79054578,0.00024152,2]
[380367717,1755707439211,-500.0,0.00024159,2]
[380367718,1755707439220,-500.0,0.00024159,2]
[380367719,1755707439229,-151.0,0.00024159,2]
[380367720,1755707439239,-300.0,0.00024159,2]
[380367721,1755707439248,-973.0,0.00024267,2]
[380367722,1755707439257,-408.0,0.00024267,2]
[380367723,1755707439266,-637.0,0.00024267,2]
[380367724,1755707439275,-2154.0,0.00024267,2]
[380367725,1755707439284,-2564.9977236,0.00024324,2]
[380367726,1755707439293,-1000.0,0.00024421,2]
[380367727,1755707439302,-1000.0,0.00024421,2]
[380367728,1755707439311,-1000.0,0.00024421,2]
[380367729,1755707439320,-500.0,0.00024421,2]
[380367730,1755707439328,-597.05718573,0.00024421,2]
[380367731,1755707439337,-1000.0,0.00024421,2]
[380367732,1755707439346,-1000.0,0.00024421,2]
[380367733,1755707439355,-500.0,0.00024421,2]
[380367734,1755707439364,-501.70449007,0.00024421,2]
[380367735,1755707439373,-501.73351215,0.00024421,2]
[380367736,1755707439382,-160.0,0.00024429,2]
[380367737,1755707439391,-500.0,0.00024433,2]
[380367738,1755707439400,-263.83488491,0.00024433,2]
[380367739,1755707439409,-271.0,0.00024452,7]
[380367740,1755707439418,-271.0,0.00024492,2]
[380367741,1755707439427,-3374.97367572,0.00024514,7]
[380367743,1755707439436,-568.47160754,0.00024577,2]
[380367744,1755707439445,-1221.8379874,0.00024598,2]
[380367745,1755707439455,-500.0,0.00024653,2]
[380367746,1755707439464,-500.0,0.00024653,2]
[380367748,1755707439474,-500.0,0.00024658,2]
[380367750,1755707439483,-11332.98,0.000247,7]
[380367752,1755707439492,-5417.28,0.000247,7]
[380367754,1755707439501,-500.0,0.00024707,2]
[380367756,1755707439510,-420.0,0.00024744,2]
[380367758,1755707439519,-2081.87378226,0.00024774,2]
[380367760,1755707439528,-1275.37,0.000248,7]
[380367762,1755707439538,-2335.98787831,0.00024837,2]
[380367764,1755707439547,-2564.9977236,0.0002485,2]
[380367766,1755707439556,-500.0,0.00024873,2]
[380367768,1755707439566,-500.67768814,0.00024873,2]
[380367770,1755707439575,-500.0,0.00024873,2]
[380367772,1755707439584,-500.0,0.00024873,2]
[380367774,1755707439593,-500.0,0.00024873,2]
[380367776,1755707439601,-501.5403866,0.00024873,2]
[380367778,1755707439610,-500.0,0.00024873,2]
[380367780,1755707439619,-500.0,0.00024873,2]
[380367782,1755707439629,-501.83718057,0.00024873,2]
[380367784,1755707439637,-500.0,0.00024873,2]
[380367786,1755707439647,-508.52762757,0.00024873,2]
[380367788,1755707439655,-503.6102621,0.00024873,2]
[380367790,1755707439664,-502.76678058,0.00024873,2]
[380367792,1755707439673,-501.24782479,0.00024873,2]
[380367794,1755707439683,-500.0,0.00024873,2]
[380367796,1755707439692,-500.97096054,0.00024873,2]
[380367798,1755707439703,-844.05985274,0.00024886,2]
[380367800,1755707439712,-232.24568399,0.00024886,2]
[380367802,1755707439721,-160.0,0.00024886,2]
[380367804,1755707439730,-375.94359665,0.00024886,2]
[380367806,1755707439739,-152.62283,0.00024888,7]
[380367808,1755707439749,-151.0,0.00024888,7]
[380367810,1755707439758,-151.0,0.00024888,7]
[380367812,1755707439767,-151.0,0.00024888,7]
[380367814,1755707439776,-196.308632,0.00024888,7]
[380367816,1755707439786,-210.381504,0.00024888,7]
[380367818,1755707439795,-210.381504,0.00024888,7]
[380367820,1755707439804,-210.381504,0.00024888,7]
[380367822,1755707439813,-210.381504,0.00024888,7]
[380367824,1755707439824,-151.0,0.00024888,7]
[380367826,1755707439833,-500.0,0.00024899,2]
[380367828,1755707439842,-1482.46335482,0.00024899,2]
[380367830,1755707439852,-1482.46335482,0.00024899,2]
[380367832,1755707439862,-1482.46335482,0.00024899,2]
[380367834,1755707439871,-1482.46335482,0.00024899,2]
[380367836,1755707439881,-500.0,0.00024899,2]
[380367838,1755707439890,-1482.46335482,0.00024899,2]
[380367840,1755707439900,-1482.46335482,0.00024899,2]
[380367842,1755707439909,-1482.46335482,0.00024899,2]
[380367844,1755707439919,-1482.46335482,0.00024899,2]
[380367846,1755707439928,-546.94364898,0.00024899,2]
[380367848,1755707439937,-1482.46335482,0.00024899,2]
[380367851,1755707439949,-1482.46335482,0.00024899,2]
[380367853,1755707439959,-1482.46335482,0.00024899,2]
[380367854,1755707439968,-1482.46335482,0.00024899,2]
[380367857,1755707439978,-1482.46335482,0.00024899,2]
[380367860,1755707439987,-1482.46335482,0.00024899,2]
[380367863,1755707439996,-1482.46335482,0.00024899,2]
[380367866,1755707440005,-1482.46335482,0.00024899,2]
[380367869,1755707440016,-1482.46335482,0.00024899,2]
[380367872,1755707440026,-1630.70969031,0.00024899,2]
[380367876,1755707440036,-1630.70969031,0.00024899,2]
[380367879,1755707440045,-1630.70969031,0.00024899,2]
[380367882,1755707440055,-1630.70969031,0.00024899,2]
[380367885,1755707440065,-1630.70969031,0.00024899,2]